[Event "Late-Titled-Tuesday-Blitz-October-10-2023"]
[Site "Chess.com"]
[Date "2023.10.10"]
[Round "3"]
[White "Witaliss"]
[Black "NelsonLinda"]
[Result "1-0"]
[WhiteElo "2456"]
[BlackElo "2576"]
[TimeControl "180+1"]
[EndTime "14:24:05 PDT"]
[Termination "Witaliss won by resignation"]

1. Nf3 {[%clk 0:03:00.9]} 1... g6 {[%clk 0:02:55.7]} 2. g3 {[%clk 0:03:00.8]}
2... Bg7 {[%clk 0:02:55.5]} 3. Bg2 {[%clk 0:03:01]} 3... Nf6 {[%clk 0:02:54.5]}
4. O-O {[%clk 0:03:00.9]} 4... O-O {[%clk 0:02:54.9]} 5. d4 {[%clk 0:03:01.1]}
5... d6 {[%clk 0:02:54.5]} 6. c4 {[%clk 0:03:00.4]} 6... Nc6 {[%clk 0:02:55.1]}
7. Nc3 {[%clk 0:03:00.5]} 7... e5 {[%clk 0:02:55.4]} 8. d5 {[%clk 0:02:59.5]}
8... Nb8 {[%clk 0:02:55.2]} 9. e4 {[%clk 0:02:48.9]} 9... a5 {[%clk 0:02:55.2]}
10. h3 {[%clk 0:02:46.9]} 10... Na6 {[%clk 0:02:54.9]} 11. Be3 {[%clk
0:02:44.2]} 11... Nd7 {[%clk 0:02:54.6]} 12. a3 {[%clk 0:02:40]} 12... Nac5
{[%clk 0:02:50.9]} 13. b4 {[%clk 0:02:36.6]} 13... axb4 {[%clk 0:02:51.2]} 14.
axb4 {[%clk 0:02:36.7]} 14... Rxa1 {[%clk 0:02:52.1]} 15. Qxa1 {[%clk
0:02:36.5]} 15... Na6 {[%clk 0:02:01]} 16. Qa3 {[%clk 0:02:35.8]} 16... h6
{[%clk 0:01:57.2]} 17. c5 {[%clk 0:02:24.3]} 17... f5 {[%clk 0:01:41.8]} 18. c6
{[%clk 0:02:24.1]} 18... bxc6 {[%clk 0:01:25.2]} 19. dxc6 {[%clk 0:02:23.1]}
19... Nf6 {[%clk 0:01:21.5]} 20. b5 {[%clk 0:02:22.7]} 20... Nc5 {[%clk
0:01:20.6]} 21. Bxc5 {[%clk 0:02:22]} 21... dxc5 {[%clk 0:01:21.5]} 22. Qxc5
{[%clk 0:02:18.7]} 22... Nxe4 {[%clk 0:01:20.6]} 23. Nxe4 {[%clk 0:02:17.8]}
23... fxe4 {[%clk 0:01:21.5]} 24. Nxe5 {[%clk 0:02:15.8]} 24... Qf6 {[%clk
0:01:15.4]} 25. Nd7 {[%clk 0:02:06.3]} 25... Qf5 {[%clk 0:01:00.9]} 26. Qc4+
{[%clk 0:02:01]} 26... Rf7 {[%clk 0:00:58.3]} 27. Bxe4 {[%clk 0:02:00.1]} 27...
Qxh3 {[%clk 0:00:58.5]} 28. Bxg6 {[%clk 0:01:56.2]} 1-0

[Event "Late-Titled-Tuesday-Blitz-October-10-2023"]
[Site "Chess.com"]
[Date "2023.10.10"]
[Round "3"]
[White "ValeriyGrinev"]
[Black "orestn"]
[Result "1-0"]
[WhiteElo "2588"]
[BlackElo "2383"]
[TimeControl "180+1"]
[EndTime "14:24:11 PDT"]
[Termination "ValeriyGrinev won by resignation"]

1. e4 {[%clk 0:03:00.9]} 1... e5 {[%clk 0:02:59.5]} 2. Nf3 {[%clk 0:03:00.7]}
2... d6 {[%clk 0:03:00]} 3. d4 {[%clk 0:02:59.9]} 3... exd4 {[%clk 0:03:00.5]}
4. Nxd4 {[%clk 0:03:00.4]} 4... Nf6 {[%clk 0:03:00.8]} 5. Nc3 {[%clk 0:02:59.7]}
5... Be7 {[%clk 0:03:00.7]} 6. Bf4 {[%clk 0:02:57.6]} 6... O-O {[%clk
0:03:00.8]} 7. Qd2 {[%clk 0:02:57.3]} 7... c6 {[%clk 0:03:01.2]} 8. O-O-O {[%clk
0:02:57.6]} 8... a5 {[%clk 0:02:59.3]} 9. a4 {[%clk 0:02:56]} 9... Na6 {[%clk
0:02:57.6]} 10. Nb3 {[%clk 0:02:54.6]} 10... Re8 {[%clk 0:02:55.4]} 11. Bxd6
{[%clk 0:02:53.2]} 11... Bxd6 {[%clk 0:02:55.1]} 12. Qxd6 {[%clk 0:02:52.8]}
12... Qxd6 {[%clk 0:02:55.3]} 13. Rxd6 {[%clk 0:02:53.4]} 13... Be6 {[%clk
0:02:51.3]} 14. Bxa6 {[%clk 0:02:50.3]} 14... Rxa6 {[%clk 0:02:50.2]} 15. f3
{[%clk 0:02:49.4]} 15... Bxb3 {[%clk 0:02:49.4]} 16. cxb3 {[%clk 0:02:48.2]}
16... Raa8 {[%clk 0:02:46.6]} 17. Rhd1 {[%clk 0:02:47.9]} 17... Kf8 {[%clk
0:02:46]} 18. g4 {[%clk 0:02:45.8]} 18... h5 {[%clk 0:02:43]} 19. g5 {[%clk
0:02:45.1]} 19... Ng8 {[%clk 0:02:39.5]} 20. Rd7 {[%clk 0:02:43.9]} 20... Re7
{[%clk 0:02:39]} 21. Rd8+ {[%clk 0:02:40]} 21... Rxd8 {[%clk 0:02:35.5]} 22.
Rxd8+ {[%clk 0:02:37.8]} 22... Re8 {[%clk 0:02:36.4]} 23. Rxe8+ {[%clk
0:02:32.6]} 23... Kxe8 {[%clk 0:02:36.1]} 24. Kd2 {[%clk 0:02:33.2]} 24... Ne7
{[%clk 0:02:34.5]} 25. Kd3 {[%clk 0:02:34.1]} 25... Ng6 {[%clk 0:02:34.3]} 26.
Ke3 {[%clk 0:02:32.1]} 26... Ne5 {[%clk 0:02:31.1]} 27. h3 {[%clk 0:02:30.5]}
27... Ke7 {[%clk 0:02:21.6]} 28. f4 {[%clk 0:02:30.8]} 28... Nd7 {[%clk
0:02:21.1]} 29. Kd4 {[%clk 0:02:30.6]} 29... g6 {[%clk 0:02:07.9]} 30. Nd1
{[%clk 0:02:30.1]} 30... Kd6 {[%clk 0:02:04.8]} 31. Ne3 {[%clk 0:02:30.2]} 31...
b6 {[%clk 0:02:02]} 32. Nc4+ {[%clk 0:02:29.7]} 32... Ke6 {[%clk 0:01:59.1]} 33.
h4 {[%clk 0:02:25.1]} 33... Nc5 {[%clk 0:01:54.4]} 34. Nxb6 {[%clk 0:02:22.7]}
34... Nxb3+ {[%clk 0:01:54.2]} 35. Kc3 {[%clk 0:02:23.3]} 35... Nc5 {[%clk
0:01:53.6]} 36. Kd4 {[%clk 0:02:20.7]} 36... Nb3+ {[%clk 0:01:53.4]} 37. Ke3
{[%clk 0:02:18.4]} 37... Nc5 {[%clk 0:01:51.7]} 38. Kf3 {[%clk 0:02:10.3]} 38...
Ke7 {[%clk 0:01:37.9]} 39. f5 {[%clk 0:02:06.1]} 39... Kd8 {[%clk 0:01:28.3]}
40. Nc4 {[%clk 0:01:59.7]} 40... Nxa4 {[%clk 0:01:25]} 41. Nxa5 {[%clk
0:01:59.9]} 41... Nxb2 {[%clk 0:01:23.2]} 42. Nxc6+ {[%clk 0:02:00.6]} 42... Kd7
{[%clk 0:01:22.5]} 43. fxg6 {[%clk 0:01:59.5]} 43... fxg6 {[%clk 0:01:21.8]} 44.
Ne5+ {[%clk 0:02:00.1]} 44... Ke6 {[%clk 0:01:21.4]} 45. Nxg6 {[%clk 0:02:00.7]}
1-0

[Event "Late-Titled-Tuesday-Blitz-October-10-2023"]
[Site "Chess.com"]
[Date "2023.10.10"]
[Round "3"]
[White "FaustinoOro"]
[Black "SHIVACalypso"]
[Result "1-0"]
[WhiteElo "2879"]
[BlackElo "2447"]
[TimeControl "180+1"]
[EndTime "14:24:12 PDT"]
[Termination "FaustinoOro won by resignation"]

1. Nf3 {[%clk 0:03:00.9]} 1... Nf6 {[%clk 0:02:59.4]} 2. b3 {[%clk 0:03:00.5]}
2... g6 {[%clk 0:02:58.4]} 3. Bb2 {[%clk 0:03:01]} 3... Bg7 {[%clk 0:02:59]} 4.
e3 {[%clk 0:03:01.7]} 4... O-O {[%clk 0:02:59.6]} 5. d4 {[%clk 0:03:01.6]} 5...
d5 {[%clk 0:02:59.4]} 6. Be2 {[%clk 0:03:01.9]} 6... Ne4 {[%clk 0:02:59.5]} 7.
O-O {[%clk 0:03:02]} 7... c5 {[%clk 0:03:00.2]} 8. Nbd2 {[%clk 0:02:57.4]} 8...
Nc6 {[%clk 0:02:59]} 9. c4 {[%clk 0:02:40.6]} 9... cxd4 {[%clk 0:02:47.1]} 10.
exd4 {[%clk 0:02:38.7]} 10... Bf5 {[%clk 0:02:39.6]} 11. Rc1 {[%clk 0:02:33.5]}
11... Nxd2 {[%clk 0:02:28.9]} 12. Qxd2 {[%clk 0:02:32.6]} 12... e5 {[%clk
0:02:26.3]} 13. dxe5 {[%clk 0:02:13.1]} 13... dxc4 {[%clk 0:02:24.5]} 14. Qxd8
{[%clk 0:02:13.7]} 14... Raxd8 {[%clk 0:02:19.3]} 15. Bxc4 {[%clk 0:02:14.2]}
15... Rfe8 {[%clk 0:02:15.6]} 16. Ng5 {[%clk 0:02:00.5]} 16... Be6 {[%clk
0:01:49]} 17. Nxe6 {[%clk 0:02:00.2]} 17... fxe6 {[%clk 0:01:49.7]} 18. f4
{[%clk 0:02:00.2]} 18... Rd2 {[%clk 0:01:46.2]} 19. Rf2 {[%clk 0:01:50.4]} 19...
Red8 {[%clk 0:01:43.1]} 20. Bxe6+ {[%clk 0:01:50]} 20... Kf8 {[%clk 0:01:39.6]}
21. Ba3+ {[%clk 0:01:49.8]} 21... Ne7 {[%clk 0:01:39.3]} 22. Bd6 {[%clk
0:01:45.4]} 22... Rxf2 {[%clk 0:01:33.8]} 23. Kxf2 {[%clk 0:01:46.3]} 23... Ke8
{[%clk 0:01:02.7]} 24. Rc7 {[%clk 0:01:45]} 24... Bf8 {[%clk 0:01:02.6]} 25.
Rxb7 {[%clk 0:01:42.7]} 1-0

[Event "Late-Titled-Tuesday-Blitz-October-10-2023"]
[Site "Chess.com"]
[Date "2023.10.10"]
[Round "3"]
[White "Dhaydon19"]
[Black "FairChess_on_YouTube"]
[Result "0-1"]
[WhiteElo "2792"]
[BlackElo "3092"]
[TimeControl "180+1"]
[EndTime "14:24:15 PDT"]
[Termination "FairChess_on_YouTube won by resignation"]

1. d4 {[%clk 0:02:56.5]} 1... Nf6 {[%clk 0:02:59.6]} 2. Nf3 {[%clk 0:02:56.7]}
2... e6 {[%clk 0:02:58.9]} 3. c4 {[%clk 0:02:56.7]} 3... d5 {[%clk 0:02:56.5]}
4. g3 {[%clk 0:02:55.8]} 4... dxc4 {[%clk 0:02:55.6]} 5. Qa4+ {[%clk 0:02:55.6]}
5... Nbd7 {[%clk 0:02:52.7]} 6. Qxc4 {[%clk 0:02:55.4]} 6... a6 {[%clk
0:02:53.1]} 7. Bg2 {[%clk 0:02:55.1]} 7... b5 {[%clk 0:02:52.8]} 8. Qc2 {[%clk
0:02:54.9]} 8... Bb7 {[%clk 0:02:52.7]} 9. Nc3 {[%clk 0:02:53]} 9... c5 {[%clk
0:02:52]} 10. dxc5 {[%clk 0:02:51.1]} 10... Bxc5 {[%clk 0:02:51.4]} 11. O-O
{[%clk 0:02:50.3]} 11... Rc8 {[%clk 0:02:52]} 12. a3 {[%clk 0:02:49.5]} 12...
O-O {[%clk 0:02:51.5]} 13. Bf4 {[%clk 0:02:47.9]} 13... Nd5 {[%clk 0:02:48.7]}
14. Ng5 {[%clk 0:02:39]} 14... N7f6 {[%clk 0:02:45.1]} 15. Be5 {[%clk
0:02:35.9]} 15... Ne3 {[%clk 0:02:22]} 16. fxe3 {[%clk 0:02:23.6]} 16... Bxe3+
{[%clk 0:02:21.3]} 17. Kh1 {[%clk 0:02:23.4]} 17... Bxg2+ {[%clk 0:02:20.6]} 18.
Kxg2 {[%clk 0:02:19.7]} 18... Bxg5 {[%clk 0:02:21.5]} 19. h4 {[%clk 0:02:17.1]}
19... Ng4 {[%clk 0:02:21.3]} 20. Qe4 {[%clk 0:02:00.9]} 20... Nxe5 {[%clk
0:02:11]} 21. hxg5 {[%clk 0:01:59.2]} 21... Qxg5 {[%clk 0:02:09.8]} 22. Rad1
{[%clk 0:01:52.1]} 22... Rc4 {[%clk 0:02:00.6]} 23. Rd4 {[%clk 0:01:51.5]} 23...
Rxd4 {[%clk 0:01:58.6]} 24. Qxd4 {[%clk 0:01:52]} 24... Nc4 {[%clk 0:01:57.4]}
25. Rf3 {[%clk 0:01:50.9]} 25... Rd8 {[%clk 0:01:51.4]} 26. Qf2 {[%clk
0:01:45.8]} 26... f5 {[%clk 0:01:50.4]} 27. b3 {[%clk 0:01:40.7]} 27... Ne5
{[%clk 0:01:50.3]} 28. Qb6 {[%clk 0:01:35.9]} 28... Nxf3 {[%clk 0:01:48.1]} 29.
Qxe6+ {[%clk 0:01:35.9]} 29... Kh8 {[%clk 0:01:48.1]} 30. Kxf3 {[%clk
0:01:34.5]} 30... Qd2 {[%clk 0:01:37.5]} 31. Qe5 {[%clk 0:01:25]} 31... Qd6
{[%clk 0:01:37.1]} 0-1

[Event "Late-Titled-Tuesday-Blitz-October-10-2023"]
[Site "Chess.com"]
[Date "2023.10.10"]
[Round "3"]
[White "hakanazeri2"]
[Black "vladislavkovalev"]
[Result "1-0"]
[WhiteElo "2624"]
[BlackElo "2864"]
[TimeControl "180+1"]
[EndTime "14:24:15 PDT"]
[Termination "hakanazeri2 won by resignation"]

1. Nf3 {[%clk 0:03:00.9]} 1... Nf6 {[%clk 0:03:00.6]} 2. c4 {[%clk 0:03:00.9]}
2... e6 {[%clk 0:03:01]} 3. g3 {[%clk 0:03:01.2]} 3... b6 {[%clk 0:03:00]} 4.
Bg2 {[%clk 0:03:01]} 4... Bb7 {[%clk 0:03:00.8]} 5. O-O {[%clk 0:03:01.3]} 5...
Be7 {[%clk 0:02:58.2]} 6. Nc3 {[%clk 0:03:01.6]} 6... O-O {[%clk 0:02:57.3]} 7.
Re1 {[%clk 0:03:01.8]} 7... d5 {[%clk 0:02:57.4]} 8. cxd5 {[%clk 0:03:02.5]}
8... exd5 {[%clk 0:02:58]} 9. d4 {[%clk 0:03:02.7]} 9... a6 {[%clk 0:02:54.4]}
10. Bg5 {[%clk 0:02:59.2]} 10... Nbd7 {[%clk 0:02:54.5]} 11. Ne5 {[%clk
0:02:58.6]} 11... Nxe5 {[%clk 0:02:28.4]} 12. dxe5 {[%clk 0:02:43.3]} 12... Ne4
{[%clk 0:02:28.7]} 13. Nxd5 {[%clk 0:02:29.6]} 13... Qxd5 {[%clk 0:01:58.1]} 14.
Qxd5 {[%clk 0:02:22.7]} 14... Bxd5 {[%clk 0:01:59]} 15. Bxe7 {[%clk 0:02:22.2]}
15... Rfe8 {[%clk 0:01:59.7]} 16. Red1 {[%clk 0:02:10.3]} 16... c6 {[%clk
0:01:35.3]} 17. Bd6 {[%clk 0:01:49.4]} 17... Nxd6 {[%clk 0:01:15.6]} 18. Bxd5
{[%clk 0:01:47.3]} 18... cxd5 {[%clk 0:01:16.5]} 19. exd6 {[%clk 0:01:47.6]}
19... Rxe2 {[%clk 0:01:14.2]} 20. Rxd5 {[%clk 0:01:32.1]} 20... Rxb2 {[%clk
0:01:04.6]} 21. d7 {[%clk 0:01:27.8]} 21... Rd8 {[%clk 0:01:05.2]} 22. Re1
{[%clk 0:01:27.6]} 22... Kf8 {[%clk 0:01:05.8]} 23. Rde5 {[%clk 0:01:27.7]} 1-0

[Event "Late-Titled-Tuesday-Blitz-October-10-2023"]
[Site "Chess.com"]
[Date "2023.10.10"]
[Round "3"]
[White "AsadliVugar"]
[Black "ExchangeAB"]
[Result "1-0"]
[WhiteElo "2861"]
[BlackElo "2501"]
[TimeControl "180+1"]
[EndTime "14:24:25 PDT"]
[Termination "AsadliVugar won by resignation"]

1. e4 {[%clk 0:03:00.9]} 1... c6 {[%clk 0:02:59.3]} 2. Nf3 {[%clk 0:03:00.8]}
2... d5 {[%clk 0:03:00.2]} 3. e5 {[%clk 0:03:01]} 3... Bg4 {[%clk 0:02:56.8]} 4.
Be2 {[%clk 0:03:01.1]} 4... e6 {[%clk 0:02:56.9]} 5. O-O {[%clk 0:03:00.3]} 5...
c5 {[%clk 0:02:55.2]} 6. c4 {[%clk 0:03:00.8]} 6... d4 {[%clk 0:02:54.7]} 7. Ne1
{[%clk 0:02:47.7]} 7... Bxe2 {[%clk 0:02:51.2]} 8. Qxe2 {[%clk 0:02:48]} 8...
Nc6 {[%clk 0:02:51.2]} 9. d3 {[%clk 0:02:46.1]} 9... Qc7 {[%clk 0:02:49.1]} 10.
f4 {[%clk 0:02:42.9]} 10... h5 {[%clk 0:02:35.9]} 11. Nd2 {[%clk 0:02:38.2]}
11... Nge7 {[%clk 0:02:35]} 12. Ne4 {[%clk 0:02:37.1]} 12... Nf5 {[%clk
0:02:35.3]} 13. Nf3 {[%clk 0:02:37.1]} 13... Be7 {[%clk 0:02:33.7]} 14. Bd2
{[%clk 0:02:36.3]} 14... Qd7 {[%clk 0:02:17.7]} 15. a3 {[%clk 0:02:35]} 15... f6
{[%clk 0:02:16.1]} 16. exf6 {[%clk 0:02:29]} 16... gxf6 {[%clk 0:02:17]} 17. b4
{[%clk 0:02:28.1]} 17... Kf7 {[%clk 0:02:12.1]} 18. b5 {[%clk 0:02:20.4]} 18...
Nb8 {[%clk 0:01:57.7]} 19. Neg5+ {[%clk 0:02:16.3]} 19... Kg6 {[%clk 0:01:36.6]}
20. Nxe6 {[%clk 0:02:15.9]} 20... Re8 {[%clk 0:01:31.1]} 21. Qe4 {[%clk
0:02:16]} 21... Bd6 {[%clk 0:01:22.2]} 22. Nh4+ {[%clk 0:02:13.6]} 22... Kf7
{[%clk 0:01:17.7]} 23. Qxf5 {[%clk 0:02:12.6]} 23... Rxe6 {[%clk 0:01:11]} 24.
Qxh5+ {[%clk 0:02:12.7]} 24... Ke7 {[%clk 0:01:07.3]} 25. Rae1 {[%clk 0:02:08]}
25... Kd8 {[%clk 0:01:02.9]} 26. Rxe6 {[%clk 0:02:06.6]} 26... Qxe6 {[%clk
0:01:03.8]} 27. Re1 {[%clk 0:02:07.1]} 27... Qg8 {[%clk 0:01:02.2]} 28. Nf5
{[%clk 0:02:04.7]} 28... Kc7 {[%clk 0:00:56.1]} 29. Nxd6 {[%clk 0:02:00.2]}
29... Kxd6 {[%clk 0:00:57]} 30. f5 {[%clk 0:02:00.5]} 30... Nd7 {[%clk
0:00:55.6]} 31. Bf4+ {[%clk 0:01:59.8]} 31... Ne5 {[%clk 0:00:55.8]} 32. Qh6
{[%clk 0:01:56.3]} 32... Re8 {[%clk 0:00:52.8]} 33. Qxf6+ {[%clk 0:01:55.7]} 1-0

[Event "Late-Titled-Tuesday-Blitz-October-10-2023"]
[Site "Chess.com"]
[Date "2023.10.10"]
[Round "3"]
[White "Sacbutt"]
[Black "Schwindle"]
[Result "0-1"]
[WhiteElo "2193"]
[BlackElo "2413"]
[TimeControl "180+1"]
[EndTime "14:24:43 PDT"]
[Termination "Schwindle won by resignation"]

1. d4 {[%clk 0:03:00.9]} 1... Nf6 {[%clk 0:02:59.9]} 2. c4 {[%clk 0:03:00.3]}
2... e6 {[%clk 0:03:00.5]} 3. Nf3 {[%clk 0:02:59.9]} 3... Bb4+ {[%clk
0:02:57.7]} 4. Bd2 {[%clk 0:02:59.4]} 4... a5 {[%clk 0:02:57.2]} 5. g3 {[%clk
0:02:59.8]} 5... O-O {[%clk 0:02:56.9]} 6. Bg2 {[%clk 0:03:00.3]} 6... Bxd2+
{[%clk 0:02:57.1]} 7. Nbxd2 {[%clk 0:02:57.4]} 7... d6 {[%clk 0:02:57.6]} 8. O-O
{[%clk 0:02:56.8]} 8... Nbd7 {[%clk 0:02:58.2]} 9. Qc2 {[%clk 0:02:57]} 9... e5
{[%clk 0:02:58.3]} 10. e4 {[%clk 0:02:54.8]} 10... Qe7 {[%clk 0:02:47.6]} 11.
Rfe1 {[%clk 0:02:50.3]} 11... exd4 {[%clk 0:02:46.8]} 12. Nxd4 {[%clk
0:02:49.7]} 12... Nc5 {[%clk 0:02:46.3]} 13. Rad1 {[%clk 0:02:39.2]} 13... Re8
{[%clk 0:02:43.6]} 14. h3 {[%clk 0:02:33.9]} 14... Bd7 {[%clk 0:02:18.7]} 15. b3
{[%clk 0:02:31.9]} 15... g6 {[%clk 0:02:15.7]} 16. Kh2 {[%clk 0:02:19.6]} 16...
Ne6 {[%clk 0:02:04.1]} 17. Nxe6 {[%clk 0:02:03.4]} 17... Bxe6 {[%clk 0:02:00.9]}
18. Nf3 {[%clk 0:01:59.5]} 18... Nd7 {[%clk 0:01:56.7]} 19. Nd4 {[%clk
0:01:55.4]} 19... Nc5 {[%clk 0:01:36.7]} 20. Nb5 {[%clk 0:01:54.2]} 20... Rad8
{[%clk 0:01:33.5]} 21. Qc3 {[%clk 0:01:51.8]} 21... b6 {[%clk 0:01:30.6]} 22.
Nd4 {[%clk 0:01:51.2]} 22... Bd7 {[%clk 0:01:27]} 23. Qc2 {[%clk 0:01:50.4]}
23... Qf6 {[%clk 0:01:25.3]} 24. f4 {[%clk 0:01:43.3]} 24... Re7 {[%clk
0:01:20.7]} 25. a3 {[%clk 0:01:14.7]} 25... Rde8 {[%clk 0:01:18.6]} 26. b4
{[%clk 0:01:13.4]} 26... Ba4 {[%clk 0:01:18.7]} 27. Qf2 {[%clk 0:01:02]} 27...
Bxd1 {[%clk 0:01:17]} 28. Rxd1 {[%clk 0:00:58.6]} 28... Nxe4 {[%clk 0:01:13.1]}
0-1

[Event "Late-Titled-Tuesday-Blitz-October-10-2023"]
[Site "Chess.com"]
[Date "2023.10.10"]
[Round "3"]
[White "KejJaj"]
[Black "traack"]
[Result "0-1"]
[WhiteElo "2160"]
[BlackElo "2407"]
[TimeControl "180+1"]
[EndTime "14:24:45 PDT"]
[Termination "traack won by resignation"]

1. d4 {[%clk 0:03:00.9]} 1... Nf6 {[%clk 0:02:59.5]} 2. Bf4 {[%clk 0:03:01.3]}
2... c5 {[%clk 0:02:58.9]} 3. d5 {[%clk 0:03:00.6]} 3... Qb6 {[%clk 0:02:57.6]}
4. Nc3 {[%clk 0:02:59.9]} 4... d6 {[%clk 0:02:54.4]} 5. e3 {[%clk 0:02:58.2]}
5... g6 {[%clk 0:02:52.7]} 6. Nf3 {[%clk 0:02:48.7]} 6... Bg7 {[%clk 0:02:53.1]}
7. a3 {[%clk 0:02:32.9]} 7... O-O {[%clk 0:02:50.9]} 8. Bc4 {[%clk 0:02:28.8]}
8... Nh5 {[%clk 0:02:49.5]} 9. O-O {[%clk 0:02:21.2]} 9... Nxf4 {[%clk
0:02:47.4]} 10. exf4 {[%clk 0:02:22.1]} 10... Qxb2 {[%clk 0:02:47.4]} 11. Nb5
{[%clk 0:02:14.2]} 11... Qxa1 {[%clk 0:02:45.4]} 12. Qxa1 {[%clk 0:02:08.8]}
12... Bxa1 {[%clk 0:02:46.3]} 13. Nc7 {[%clk 0:02:01.9]} 13... Bb2 {[%clk
0:02:40.5]} 14. Nxa8 {[%clk 0:01:54.2]} 14... Na6 {[%clk 0:02:32]} 15. Bxa6
{[%clk 0:01:52.6]} 15... bxa6 {[%clk 0:02:27]} 16. Rb1 {[%clk 0:01:31.4]} 16...
Bxa3 {[%clk 0:02:26.1]} 17. Rb8 {[%clk 0:01:30.3]} 17... Bf5 {[%clk 0:02:23.7]}
18. Rxf8+ {[%clk 0:01:27.9]} 18... Kxf8 {[%clk 0:02:22.9]} 19. Nc7 {[%clk
0:01:28.8]} 19... Bxc2 {[%clk 0:02:18.1]} 20. Nxa6 {[%clk 0:01:27.6]} 20... Be4
{[%clk 0:02:18.3]} 21. Nd2 {[%clk 0:01:26.9]} 21... Bxd5 {[%clk 0:02:16.8]} 22.
Nc7 {[%clk 0:01:24.9]} 22... Bc6 {[%clk 0:02:14.9]} 23. Nc4 {[%clk 0:01:22.5]}
23... Bc1 {[%clk 0:02:13.5]} 24. g3 {[%clk 0:01:15]} 24... d5 {[%clk 0:02:13.6]}
25. Ne5 {[%clk 0:01:12.4]} 25... Bb7 {[%clk 0:02:13.1]} 26. Nd7+ {[%clk
0:01:11.2]} 26... Kg7 {[%clk 0:02:11.2]} 27. Nxc5 {[%clk 0:01:12.1]} 27... Bc6
{[%clk 0:02:11.3]} 28. Kf1 {[%clk 0:01:09.8]} 28... Ba3 {[%clk 0:02:09.9]} 29.
Nb3 {[%clk 0:01:07.9]} 29... Bd6 {[%clk 0:02:09.9]} 30. Nd4 {[%clk 0:01:01.7]}
30... Bd7 {[%clk 0:02:07.6]} 31. Na6 {[%clk 0:01:00.9]} 31... e5 {[%clk
0:02:05.2]} 32. fxe5 {[%clk 0:00:58.3]} 32... Bxe5 {[%clk 0:02:04.1]} 33. Nf3
{[%clk 0:00:58.9]} 33... Bd6 {[%clk 0:01:59.8]} 34. Nd4 {[%clk 0:00:50.7]} 34...
Be5 {[%clk 0:01:59.9]} 35. Nf3 {[%clk 0:00:50.8]} 35... Bb5+ {[%clk 0:02:00.3]}
36. Ke1 {[%clk 0:00:50.2]} 36... Bd6 {[%clk 0:02:01.2]} 37. Nd4 {[%clk
0:00:34.9]} 37... Bxa6 {[%clk 0:02:00.8]} 0-1

[Event "Late-Titled-Tuesday-Blitz-October-10-2023"]
[Site "Chess.com"]
[Date "2023.10.10"]
[Round "3"]
[White "PapaieDudu"]
[Black "PNEPaul"]
[Result "1-0"]
[WhiteElo "2376"]
[BlackElo "1989"]
[TimeControl "180+1"]
[EndTime "14:24:52 PDT"]
[Termination "PapaieDudu won by resignation"]

1. e4 {[%clk 0:03:00.9]} 1... e5 {[%clk 0:02:56.4]} 2. f4 {[%clk 0:03:00.3]}
2... Bc5 {[%clk 0:02:55.3]} 3. Nf3 {[%clk 0:03:00.1]} 3... d6 {[%clk 0:02:55.1]}
4. c3 {[%clk 0:02:59.7]} 4... Nc6 {[%clk 0:02:55.3]} 5. d4 {[%clk 0:03:00.2]}
5... Bb6 {[%clk 0:02:52.2]} 6. Bc4 {[%clk 0:02:59.5]} 6... Nf6 {[%clk 0:02:52]}
7. d5 {[%clk 0:02:57.7]} 7... Nb8 {[%clk 0:02:44.2]} 8. fxe5 {[%clk 0:02:57.9]}
8... dxe5 {[%clk 0:02:42.2]} 9. Nxe5 {[%clk 0:02:55.7]} 9... O-O {[%clk
0:02:41.6]} 10. Bg5 {[%clk 0:02:51.2]} 10... h6 {[%clk 0:02:26.4]} 11. Bxf6
{[%clk 0:02:48.2]} 11... Qxf6 {[%clk 0:02:23.4]} 12. Nf3 {[%clk 0:02:48.9]}
12... Re8 {[%clk 0:02:13]} 13. Nbd2 {[%clk 0:02:45.9]} 13... Bg4 {[%clk
0:02:07.4]} 14. Qe2 {[%clk 0:02:45.9]} 14... Nd7 {[%clk 0:02:05]} 15. Rf1 {[%clk
0:02:41.9]} 15... Qg6 {[%clk 0:01:14.3]} 16. O-O-O {[%clk 0:02:37.5]} 16... f5
{[%clk 0:01:13.9]} 17. e5 {[%clk 0:01:48.9]} 17... Kh8 {[%clk 0:00:48.6]} 18.
Rde1 {[%clk 0:01:43.8]} 18... Nc5 {[%clk 0:00:19.4]} 19. h3 {[%clk 0:01:43.7]}
19... Bxf3 {[%clk 0:00:18.6]} 20. Rxf3 {[%clk 0:01:40.6]} 20... Ne4 {[%clk
0:00:13.4]} 21. Nxe4 {[%clk 0:01:40.4]} 21... fxe4 {[%clk 0:00:13.2]} 22. Qxe4
{[%clk 0:01:40.6]} 22... Qxe4 {[%clk 0:00:12.6]} 23. Rxe4 {[%clk 0:01:41.3]} 1-0

[Event "Late-Titled-Tuesday-Blitz-October-10-2023"]
[Site "Chess.com"]
[Date "2023.10.10"]
[Round "3"]
[White "arminmusovic"]
[Black "Zhigalko_Sergei"]
[Result "0-1"]
[WhiteElo "2505"]
[BlackElo "2892"]
[TimeControl "180+1"]
[EndTime "14:24:58 PDT"]
[Termination "Zhigalko_Sergei won by resignation"]

1. a3 {[%clk 0:02:55.3]} 1... e5 {[%clk 0:02:59.2]} 2. d4 {[%clk 0:02:55.2]}
2... e4 {[%clk 0:02:58.9]} 3. c4 {[%clk 0:02:54.6]} 3... Nf6 {[%clk 0:02:53.1]}
4. Nc3 {[%clk 0:02:54.7]} 4... h6 {[%clk 0:02:48.4]} 5. h3 {[%clk 0:02:53.8]}
5... c6 {[%clk 0:02:48.2]} 6. Bf4 {[%clk 0:02:54.1]} 6... d5 {[%clk 0:02:45.1]}
7. e3 {[%clk 0:02:54.6]} 7... Bd6 {[%clk 0:02:42.2]} 8. Be5 {[%clk 0:02:53.6]}
8... Be6 {[%clk 0:02:17]} 9. cxd5 {[%clk 0:02:49.2]} 9... cxd5 {[%clk
0:02:11.4]} 10. Rc1 {[%clk 0:02:44.5]} 10... Nc6 {[%clk 0:02:08]} 11. Nb5 {[%clk
0:02:39.6]} 11... Nxe5 {[%clk 0:02:00]} 12. dxe5 {[%clk 0:02:40.5]} 12... Bxe5
{[%clk 0:02:00.1]} 13. Ne2 {[%clk 0:02:32]} 13... O-O {[%clk 0:01:57.6]} 14.
Nbd4 {[%clk 0:02:28.5]} 14... Qb6 {[%clk 0:01:54.1]} 15. b4 {[%clk 0:02:27]}
15... a5 {[%clk 0:01:50]} 16. b5 {[%clk 0:02:22.1]} 16... Bd6 {[%clk 0:01:44.9]}
17. Qa4 {[%clk 0:02:18.5]} 17... Ne8 {[%clk 0:01:41.1]} 18. Nc3 {[%clk 0:02:12]}
18... Nf6 {[%clk 0:01:36.2]} 19. Be2 {[%clk 0:02:11.2]} 19... Rac8 {[%clk
0:01:28.7]} 20. Qb3 {[%clk 0:02:11.6]} 20... Bb8 {[%clk 0:01:20.1]} 21. Kd2
{[%clk 0:02:07.8]} 21... Be5 {[%clk 0:01:16.8]} 22. Na4 {[%clk 0:02:04.5]} 22...
Qd6 {[%clk 0:01:16.3]} 23. Nxe6 {[%clk 0:01:33.3]} 23... fxe6 {[%clk 0:01:12.7]}
24. Rhd1 {[%clk 0:01:26.1]} 24... d4 {[%clk 0:00:59.8]} 25. exd4 {[%clk
0:01:26.3]} 25... Qxd4+ {[%clk 0:00:48.1]} 26. Ke1 {[%clk 0:01:26.4]} 26... Rxc1
{[%clk 0:00:45.3]} 27. Rxc1 {[%clk 0:01:26.9]} 27... Nd5 {[%clk 0:00:44.6]} 28.
f3 {[%clk 0:01:16.6]} 28... Bg3+ {[%clk 0:00:43.3]} 0-1